[Event "Titled Tuesday Blitz May 9 Early 2023"]
[White "Gvanceladze, Anna"]
[Black "Sokolovsky, Yahli"]
[WhiteFideId "4113721"]
[BlackFideId "2820242"]
[WhiteElo "2025"]
[BlackElo "2389"]
[Result "0-1"]
[Round "02"]
[TimeControl "180+2"]
[Date "2023.05.09"]
[WhiteClock "0:00:13"]
[BlackClock "0:01:07"]

1. d4 {[%clk 0:02:58]}  d5 {[%clk 0:03:00]} 2. Nf3 {[%clk 0:02:59]}  c6 {[%clk 0:02:59]} 3. c4 {[%clk 0:02:59]}  e6 {[%clk 0:03:00]} 4. cxd5 {[%clk 0:02:59]}  exd5 {[%clk 0:03:00]} 5. Nc3 {[%clk 0:03:00]}  Be7 {[%clk 0:02:55]} 6. Qc2 {[%clk 0:03:00]}  Nf6 {[%clk 0:02:55]} 7. Bg5 {[%clk 0:03:00]}  Bg4 {[%clk 0:02:54]} 8. e3 {[%clk 0:03:00]}  Bh5 {[%clk 0:02:51]} 9. Bd3 {[%clk 0:03:00]}  Nbd7 {[%clk 0:02:51]} 10. h3 {[%clk 0:02:56]}  Bg6 {[%clk 0:02:51]} 11. Bxg6 {[%clk 0:02:44]}  hxg6 {[%clk 0:02:52]} 12. Ne5 {[%clk 0:02:41]}  Nxe5 {[%clk 0:02:39]} 13. dxe5 {[%clk 0:02:42]}  Nh5 {[%clk 0:02:40]} 14. Bxe7 {[%clk 0:02:18]}  Qxe7 {[%clk 0:02:41]} 15. f4 {[%clk 0:02:18]}  Ng3 {[%clk 0:02:01]} 16. Rg1 {[%clk 0:02:11]}  Nf5 {[%clk 0:02:02]} 17. e4 {[%clk 0:02:00]}  dxe4 {[%clk 0:01:47]} 18. Qxe4 {[%clk 0:01:54]}  O-O-O {[%clk 0:01:44]} 19. Qa4 {[%clk 0:01:02]}  Qh4+ {[%clk 0:01:42]} 20. Ke2 {[%clk 0:01:01]}  Rd4 {[%clk 0:01:25]} 21. Qxa7 {[%clk 0:00:53]}  Ng3+ {[%clk 0:01:26]} 22. Ke1 {[%clk 0:00:40]}  Qxf4 {[%clk 0:01:16]} 23. Ne2 {[%clk 0:00:22]}  Qd2+ {[%clk 0:01:11]} 24. Kf2 {[%clk 0:00:22]}  Qxe2+ {[%clk 0:01:06]} 25. Kxg3 {[%clk 0:00:13]}  Qxe5+ {[%clk 0:01:07]} 0-1


[Site "https://www.chess.com"]

[Event "Titled Tuesday Blitz May 9 Early 2023"]
[White "Andrews, Todd"]
[Black "Rakotomaharo, Fy Antenaina"]
[WhiteFideId "2012456"]
[BlackFideId "13100050"]
[WhiteElo "2173"]
[BlackElo "2427"]
[Result "0-1"]
[Round "02"]
[TimeControl "180+2"]
[Date "2023.05.09"]
[WhiteClock "0:00:02"]
[BlackClock "0:01:05"]

1. e4 {[%clk 0:02:53]}  c5 {[%clk 0:03:00]} 2. Nf3 {[%clk 0:02:53]}  Nc6 {[%clk 0:03:00]} 3. d3 {[%clk 0:02:52]}  Nf6 {[%clk 0:03:00]} 4. g3 {[%clk 0:02:53]}  d5 {[%clk 0:03:00]} 5. Nbd2 {[%clk 0:02:53]}  e5 {[%clk 0:03:01]} 6. Bg2 {[%clk 0:02:53]}  Be7 {[%clk 0:03:02]} 7. O-O {[%clk 0:02:53]}  O-O {[%clk 0:03:02]} 8. Re1 {[%clk 0:02:52]}  d4 {[%clk 0:03:02]} 9. a4 {[%clk 0:02:52]}  Re8 {[%clk 0:03:02]} 10. Nc4 {[%clk 0:02:52]}  Bf8 {[%clk 0:03:03]} 11. Rf1 {[%clk 0:02:44]}  Bg4 {[%clk 0:03:02]} 12. h3 {[%clk 0:02:44]}  Bh5 {[%clk 0:03:02]} 13. g4 {[%clk 0:02:36]}  Bg6 {[%clk 0:03:02]} 14. Nh4 {[%clk 0:02:37]}  Nd7 {[%clk 0:03:00]} 15. Nf5 {[%clk 0:02:32]}  Qc7 {[%clk 0:02:57]} 16. f4 {[%clk 0:02:21]}  exf4 {[%clk 0:02:58]} 17. Bxf4 {[%clk 0:02:21]}  Nde5 {[%clk 0:02:58]} 18. Qe1 {[%clk 0:02:12]}  f6 {[%clk 0:02:53]} 19. Qg3 {[%clk 0:02:10]}  Rad8 {[%clk 0:02:51]} 20. Kh1 {[%clk 0:02:10]}  Kh8 {[%clk 0:02:50]} 21. h4 {[%clk 0:02:10]}  Bf7 {[%clk 0:02:50]} 22. g5 {[%clk 0:01:38]}  Bxc4 {[%clk 0:02:48]} 23. dxc4 {[%clk 0:01:35]}  Qf7 {[%clk 0:02:48]} 24. b3 {[%clk 0:01:20]}  d3 {[%clk 0:02:48]} 25. c3 {[%clk 0:01:10]}  Ng6 {[%clk 0:02:26]} 26. Bd2 {[%clk 0:01:06]}  Nge5 {[%clk 0:02:12]} 27. Rf2 {[%clk 0:00:56]}  Na5 {[%clk 0:02:10]} 28. Rb1 {[%clk 0:00:40]}  a6 {[%clk 0:02:10]} 29. Bf1 {[%clk 0:00:31]}  b5 {[%clk 0:02:09]} 30. Rh2 {[%clk 0:00:31]}  bxc4 {[%clk 0:02:08]} 31. b4 {[%clk 0:00:24]}  Nb3 {[%clk 0:02:07]} 32. Bf4 {[%clk 0:00:18]}  cxb4 {[%clk 0:02:04]} 33. h5 {[%clk 0:00:15]}  d2 {[%clk 0:01:50]} 34. Rd1 {[%clk 0:00:15]}  Qb7 {[%clk 0:01:47]} 35. Qg2 {[%clk 0:00:09]}  fxg5 {[%clk 0:01:44]} 36. Bxg5 {[%clk 0:00:09]}  bxc3 {[%clk 0:01:33]} 37. h6 {[%clk 0:00:09]}  g6 {[%clk 0:01:29]} 38. Bf6+ {[%clk 0:00:09]}  Kg8 {[%clk 0:01:29]} 39. Ne3 {[%clk 0:00:07]}  Rd3 {[%clk 0:01:23]} 40. Bxe5 {[%clk 0:00:06]}  Rxe5 {[%clk 0:01:21]} 41. Bxd3 {[%clk 0:00:06]}  cxd3 {[%clk 0:01:21]} 42. Nd5 {[%clk 0:00:06]}  c2 {[%clk 0:01:18]} 43. Qf1 {[%clk 0:00:04]}  cxd1=Q {[%clk 0:01:09]} 44. Qxd1 {[%clk 0:00:05]}  Rxe4 {[%clk 0:01:04]} 45. Nf6+ {[%clk 0:00:04]}  Kh8 {[%clk 0:01:04]} 46. Nxe4 {[%clk 0:00:04]}  Qxe4+ {[%clk 0:01:05]} 47. Kg1 {[%clk 0:00:02]}  Qe1+ {[%clk 0:01:05]} 0-1


[Site "https://www.chess.com"]

[Event "Titled Tuesday Blitz May 9 Early 2023"]
[White "Harshavardhan G B"]
[Black "Luberanski, Jakub"]
[WhiteFideId "25059009"]
[BlackFideId "21830509"]
[WhiteElo "2323"]
[BlackElo "2255"]
[Result "1-0"]
[Round "02"]
[TimeControl "180+2"]
[Date "2023.05.09"]
[WhiteClock "0:00:57"]
[BlackClock "0:00:09"]

1. e4 {[%clk 0:03:00]}  c6 {[%clk 0:02:59]} 2. Nf3 {[%clk 0:02:49]}  d5 {[%clk 0:03:00]} 3. exd5 {[%clk 0:02:50]}  cxd5 {[%clk 0:02:59]} 4. Ne5 {[%clk 0:02:51]}  a6 {[%clk 0:02:52]} 5. d4 {[%clk 0:02:51]}  Nc6 {[%clk 0:02:51]} 6. c4 {[%clk 0:02:51]}  Nf6 {[%clk 0:02:38]} 7. Nc3 {[%clk 0:02:51]}  Bf5 {[%clk 0:02:29]} 8. Be3 {[%clk 0:02:43]}  e6 {[%clk 0:02:28]} 9. Qa4 {[%clk 0:02:27]}  Rc8 {[%clk 0:02:20]} 10. cxd5 {[%clk 0:02:23]}  Nxd5 {[%clk 0:02:18]} 11. Nxc6 {[%clk 0:02:23]}  Rxc6 {[%clk 0:02:05]} 12. Bxa6 {[%clk 0:02:21]}  Nb6 {[%clk 0:01:25]} 13. Bxb7 {[%clk 0:02:19]}  Nxa4 {[%clk 0:01:20]} 14. Bxc6+ {[%clk 0:02:19]}  Ke7 {[%clk 0:01:21]} 15. Bxa4 {[%clk 0:02:19]}  Kf6 {[%clk 0:01:21]} 16. O-O {[%clk 0:02:18]}  Bb4 {[%clk 0:01:19]} 17. Rac1 {[%clk 0:02:11]}  Qa8 {[%clk 0:01:13]} 18. Bb3 {[%clk 0:02:10]}  Rc8 {[%clk 0:01:06]} 19. Rfd1 {[%clk 0:02:02]}  h6 {[%clk 0:00:54]} 20. d5 {[%clk 0:02:01]}  Kg6 {[%clk 0:00:50]} 21. dxe6 {[%clk 0:01:59]}  fxe6 {[%clk 0:00:51]} 22. Ne2 {[%clk 0:01:54]}  Kh7 {[%clk 0:00:46]} 23. Nd4 {[%clk 0:01:52]}  Be4 {[%clk 0:00:40]} 24. Rxc8 {[%clk 0:01:49]}  Qxc8 {[%clk 0:00:39]} 25. Bxe6 {[%clk 0:01:48]}  Qa8 {[%clk 0:00:37]} 26. f3 {[%clk 0:01:46]}  Bg6 {[%clk 0:00:37]} 27. Bb3 {[%clk 0:01:32]}  Bc5 {[%clk 0:00:36]} 28. Nf5 {[%clk 0:01:27]}  Qa7 {[%clk 0:00:28]} 29. Bxc5 {[%clk 0:01:26]}  Qxc5+ {[%clk 0:00:28]} 30. Nd4 {[%clk 0:01:27]}  h5 {[%clk 0:00:25]} 31. h3 {[%clk 0:01:26]}  h4 {[%clk 0:00:24]} 32. Kf2 {[%clk 0:01:26]}  Qe5 {[%clk 0:00:22]} 33. Rd2 {[%clk 0:01:24]}  Qg3+ {[%clk 0:00:20]} 34. Kf1 {[%clk 0:01:23]}  Qf4 {[%clk 0:00:20]} 35. Ke1 {[%clk 0:01:20]}  Qe3+ {[%clk 0:00:19]} 36. Ne2 {[%clk 0:01:20]}  Bd3 {[%clk 0:00:18]} 37. Bc2 {[%clk 0:01:15]}  Bxc2 {[%clk 0:00:18]} 38. Rxc2 {[%clk 0:01:16]}  Qg5 {[%clk 0:00:18]} 39. Nc3 {[%clk 0:01:16]}  Qe3+ {[%clk 0:00:18]} 40. Re2 {[%clk 0:01:16]}  Qc1+ {[%clk 0:00:17]} 41. Kf2 {[%clk 0:01:16]}  Qf4 {[%clk 0:00:18]} 42. a4 {[%clk 0:01:16]}  Qg3+ {[%clk 0:00:16]} 43. Ke3 {[%clk 0:01:17]}  Qe5+ {[%clk 0:00:16]} 44. Kd3 {[%clk 0:01:17]}  Qd6+ {[%clk 0:00:16]} 45. Kc2 {[%clk 0:01:17]}  Qb6 {[%clk 0:00:16]} 46. Kb1 {[%clk 0:01:16]}  Kg6 {[%clk 0:00:15]} 47. Ka2 {[%clk 0:01:16]}  Qb4 {[%clk 0:00:15]} 48. Re4 {[%clk 0:01:16]}  Qc5 {[%clk 0:00:15]} 49. Rxh4 {[%clk 0:01:15]}  Qf2 {[%clk 0:00:14]} 50. Rg4+ {[%clk 0:01:16]}  Kf7 {[%clk 0:00:15]} 51. Kb3 {[%clk 0:01:16]}  Qb6+ {[%clk 0:00:15]} 52. Ka2 {[%clk 0:01:15]}  Qe6+ {[%clk 0:00:15]} 53. Ka3 {[%clk 0:01:14]}  Qd6+ {[%clk 0:00:15]} 54. Rb4 {[%clk 0:01:14]}  Qg6 {[%clk 0:00:14]} 55. g4 {[%clk 0:01:13]}  Qd6 {[%clk 0:00:14]} 56. a5 {[%clk 0:01:13]}  Qc5 {[%clk 0:00:14]} 57. Ka4 {[%clk 0:01:13]}  Qc6+ {[%clk 0:00:14]} 58. Rb5 {[%clk 0:01:13]}  Qc4+ {[%clk 0:00:15]} 59. Ka3 {[%clk 0:01:13]}  Qf1 {[%clk 0:00:13]} 60. a6 {[%clk 0:01:11]}  Qa1+ {[%clk 0:00:13]} 61. Na2 {[%clk 0:01:12]}  Qd1 {[%clk 0:00:13]} 62. Ra5 {[%clk 0:01:04]}  Qd3+ {[%clk 0:00:12]} 63. Nc3 {[%clk 0:01:04]}  Qd6+ {[%clk 0:00:12]} 64. Ka2 {[%clk 0:00:57]}  Qe6+ {[%clk 0:00:11]} 65. Nd5 {[%clk 0:00:57]}  Qc6 {[%clk 0:00:10]} 66. a7 {[%clk 0:00:56]}  Qc4+ {[%clk 0:00:10]} 67. Ka3 {[%clk 0:00:56]}  Qd3+ {[%clk 0:00:11]} 68. Nc3 {[%clk 0:00:56]}  Qd6+ {[%clk 0:00:11]} 69. Ka2 {[%clk 0:00:56]}  Qe6+ {[%clk 0:00:09]} 70. Nd5 {[%clk 0:00:57]} 1-0


[Site "https://www.chess.com"]

[Event "Titled Tuesday Blitz May 9 Early 2023"]
[White "Melikhov, Evgeny V."]
[Black "Tatarinov, Dmitry"]
[WhiteFideId "4122046"]
[BlackFideId "24160067"]
[WhiteElo "2158"]
[BlackElo "2326"]
[Result "0-1"]
[Round "02"]
[TimeControl "180+2"]
[Date "2023.05.09"]
[WhiteClock "0:00:04"]
[BlackClock "0:01:21"]

1. d4 {[%clk 0:03:00]}  Nf6 {[%clk 0:02:59]} 2. c4 {[%clk 0:03:00]}  g6 {[%clk 0:02:59]} 3. Nc3 {[%clk 0:03:00]}  Bg7 {[%clk 0:03:00]} 4. e4 {[%clk 0:03:00]}  O-O {[%clk 0:03:01]} 5. Be3 {[%clk 0:02:59]}  d6 {[%clk 0:03:01]} 6. f3 {[%clk 0:02:59]}  e5 {[%clk 0:03:01]} 7. d5 {[%clk 0:02:59]}  Nh5 {[%clk 0:03:02]} 8. Qd2 {[%clk 0:02:58]}  f5 {[%clk 0:03:00]} 9. O-O-O {[%clk 0:02:58]}  f4 {[%clk 0:03:01]} 10. Bf2 {[%clk 0:02:58]}  a5 {[%clk 0:03:01]} 11. Nge2 {[%clk 0:02:52]}  Na6 {[%clk 0:03:01]} 12. Kb1 {[%clk 0:02:52]}  Nc5 {[%clk 0:03:00]} 13. Nc1 {[%clk 0:02:50]}  a4 {[%clk 0:02:59]} 14. Nb5 {[%clk 0:02:35]}  Bd7 {[%clk 0:02:58]} 15. Nd3 {[%clk 0:02:28]}  b6 {[%clk 0:02:54]} 16. Rc1 {[%clk 0:02:11]}  Rf7 {[%clk 0:02:53]} 17. Be2 {[%clk 0:01:56]}  Nf6 {[%clk 0:02:49]} 18. Rc3 {[%clk 0:01:54]}  Nfxe4 {[%clk 0:02:49]} 19. fxe4 {[%clk 0:01:52]}  Nxe4 {[%clk 0:02:49]} 20. Qc1 {[%clk 0:01:46]}  Bf5 {[%clk 0:02:47]} 21. Ka1 {[%clk 0:01:46]}  Nxc3 {[%clk 0:02:46]} 22. Nxc3 {[%clk 0:01:41]}  a3 {[%clk 0:02:46]} 23. Bf3 {[%clk 0:01:31]}  axb2+ {[%clk 0:02:43]} 24. Nxb2 {[%clk 0:01:29]}  e4 {[%clk 0:02:21]} 25. Nxe4 {[%clk 0:01:25]}  Qb8 {[%clk 0:02:07]} 26. Rd1 {[%clk 0:01:11]}  Qa7 {[%clk 0:01:52]} 27. Qb1 {[%clk 0:01:07]}  Re7 {[%clk 0:01:50]} 28. Re1 {[%clk 0:00:43]}  Qa3 {[%clk 0:01:33]} 29. Re2 {[%clk 0:00:26]}  Ra4 {[%clk 0:01:26]} 30. Be1 {[%clk 0:00:20]}  Rxc4 {[%clk 0:01:24]} 31. Qd1 {[%clk 0:00:08]}  Bxe4 {[%clk 0:01:22]} 32. Bxe4 {[%clk 0:00:04]}  Rcxe4 {[%clk 0:01:21]} 0-1


[Site "https://www.chess.com"]

[Event "Titled Tuesday Blitz May 9 Early 2023"]
[White "Goswami, Vedant"]
[Black "bubeliang"]
[WhiteFideId "5003725"]
[WhiteElo "2011"]
[BlackElo "2654"]
[Result "1/2-1/2"]
[Round "02"]
[TimeControl "180+2"]
[Date "2023.05.09"]
[WhiteClock "0:00:45"]
[BlackClock "0:01:14"]

1. b3 {[%clk 0:03:00]}  Nf6 {[%clk 0:02:59]} 2. Bb2 {[%clk 0:02:59]}  g6 {[%clk 0:02:59]} 3. e4 {[%clk 0:02:56]}  d6 {[%clk 0:02:58]} 4. Nf3 {[%clk 0:02:54]}  Bg7 {[%clk 0:02:58]} 5. d3 {[%clk 0:02:43]}  O-O {[%clk 0:02:57]} 6. Be2 {[%clk 0:02:43]}  c5 {[%clk 0:02:56]} 7. O-O {[%clk 0:02:42]}  Nc6 {[%clk 0:02:56]} 8. Nbd2 {[%clk 0:02:36]}  Be6 {[%clk 0:02:55]} 9. Ng5 {[%clk 0:02:33]}  Bd7 {[%clk 0:02:54]} 10. Ngf3 {[%clk 0:02:24]}  Rc8 {[%clk 0:02:52]} 11. Re1 {[%clk 0:02:22]}  Re8 {[%clk 0:02:49]} 12. Bf1 {[%clk 0:02:21]}  e5 {[%clk 0:02:46]} 13. Nc4 {[%clk 0:02:18]}  Be6 {[%clk 0:02:44]} 14. Ng5 {[%clk 0:02:09]}  Bxc4 {[%clk 0:02:36]} 15. dxc4 {[%clk 0:02:04]}  h6 {[%clk 0:02:35]} 16. Nf3 {[%clk 0:02:02]}  Nd4 {[%clk 0:02:32]} 17. c3 {[%clk 0:01:58]}  Nxf3+ {[%clk 0:02:29]} 18. Qxf3 {[%clk 0:01:58]}  Qe7 {[%clk 0:02:29]} 19. Rad1 {[%clk 0:01:54]}  Rcd8 {[%clk 0:02:29]} 20. Rd3 {[%clk 0:01:52]}  Rd7 {[%clk 0:02:28]} 21. Red1 {[%clk 0:01:50]}  Red8 {[%clk 0:02:28]} 22. g3 {[%clk 0:01:49]}  Qe6 {[%clk 0:02:19]} 23. Bc1 {[%clk 0:01:37]}  h5 {[%clk 0:02:17]} 24. Bg5 {[%clk 0:01:33]}  Rc8 {[%clk 0:02:06]} 25. Bxf6 {[%clk 0:01:20]}  Bxf6 {[%clk 0:02:07]} 26. h4 {[%clk 0:01:18]}  Rcd8 {[%clk 0:01:57]} 27. Kh2 {[%clk 0:01:17]}  Qe7 {[%clk 0:01:53]} 28. Bh3 {[%clk 0:01:17]}  Rc7 {[%clk 0:01:53]} 29. R1d2 {[%clk 0:01:11]}  Kg7 {[%clk 0:01:52]} 30. Qd1 {[%clk 0:01:09]}  Rc6 {[%clk 0:01:48]} 31. Rd5 {[%clk 0:01:01]}  a5 {[%clk 0:01:45]} 32. R2d3 {[%clk 0:00:56]}  Ra6 {[%clk 0:01:26]} 33. a4 {[%clk 0:00:52]}  Rb6 {[%clk 0:01:23]} 34. Bf1 {[%clk 0:00:47]}  Rc6 {[%clk 0:01:15]} 35. Bh3 {[%clk 0:00:46]}  Rb6 {[%clk 0:01:14]} 36. Bf1 {[%clk 0:00:45]}  Rc6 {[%clk 0:01:14]} 37. Bh3 {[%clk 0:00:45]}  Rb6 {[%clk 0:01:14]} 1/2-1/2


[Site "https://www.chess.com"]

[Event "Titled Tuesday Blitz May 9 Early 2023"]
[White "Aldokhin, Ivan"]
[Black "Van Dael, Siem"]
[WhiteFideId "24115720"]
[BlackFideId "1049771"]
[WhiteElo "2322"]
[BlackElo "2336"]
[Result "0-1"]
[Round "02"]
[TimeControl "180+2"]
[Date "2023.05.09"]
[WhiteClock "0:00:12"]
[BlackClock "0:00:14"]

1. e4 {[%clk 0:02:58]}  c5 {[%clk 0:02:59]} 2. Nf3 {[%clk 0:02:58]}  d6 {[%clk 0:02:56]} 3. d4 {[%clk 0:02:58]}  cxd4 {[%clk 0:02:55]} 4. Nxd4 {[%clk 0:02:59]}  Nf6 {[%clk 0:02:54]} 5. Nc3 {[%clk 0:02:59]}  a6 {[%clk 0:02:53]} 6. Bc4 {[%clk 0:03:00]}  e6 {[%clk 0:02:53]} 7. Bb3 {[%clk 0:03:00]}  b5 {[%clk 0:02:53]} 8. O-O {[%clk 0:03:00]}  Be7 {[%clk 0:02:50]} 9. Qf3 {[%clk 0:03:00]}  Qb6 {[%clk 0:02:37]} 10. Be3 {[%clk 0:02:55]}  Qb7 {[%clk 0:02:35]} 11. a3 {[%clk 0:02:50]}  Nbd7 {[%clk 0:02:32]} 12. Qg3 {[%clk 0:02:34]}  Nc5 {[%clk 0:02:27]} 13. f3 {[%clk 0:02:31]}  Nxb3 {[%clk 0:02:13]} 14. cxb3 {[%clk 0:02:24]}  O-O {[%clk 0:02:06]} 15. Kh1 {[%clk 0:02:17]}  Kh8 {[%clk 0:01:58]} 16. Rac1 {[%clk 0:02:08]}  Bd7 {[%clk 0:01:57]} 17. b4 {[%clk 0:02:08]}  Rac8 {[%clk 0:01:56]} 18. Nb3 {[%clk 0:02:09]}  Rc7 {[%clk 0:01:49]} 19. e5 {[%clk 0:01:57]}  dxe5 {[%clk 0:01:43]} 20. Nc5 {[%clk 0:01:51]}  Bxc5 {[%clk 0:01:39]} 21. bxc5 {[%clk 0:01:38]}  Bc6 {[%clk 0:01:15]} 22. Qxe5 {[%clk 0:01:36]}  Rd7 {[%clk 0:01:13]} 23. Bg5 {[%clk 0:01:27]}  Nd5 {[%clk 0:01:04]} 24. Bd2 {[%clk 0:01:12]}  Rfd8 {[%clk 0:00:57]} 25. Ne4 {[%clk 0:01:11]}  Qb8 {[%clk 0:00:48]} 26. Nd6 {[%clk 0:01:09]}  Rxd6 {[%clk 0:00:41]} 27. cxd6 {[%clk 0:01:08]}  Qxd6 {[%clk 0:00:41]} 28. Qxd6 {[%clk 0:01:08]}  Rxd6 {[%clk 0:00:42]} 29. Rfd1 {[%clk 0:01:09]}  Bb7 {[%clk 0:00:38]} 30. Bb4 {[%clk 0:00:54]}  Rc6 {[%clk 0:00:32]} 31. Rxc6 {[%clk 0:00:42]}  Bxc6 {[%clk 0:00:32]} 32. Kg1 {[%clk 0:00:42]}  g6 {[%clk 0:00:30]} 33. Kf2 {[%clk 0:00:41]}  Kg7 {[%clk 0:00:30]} 34. g4 {[%clk 0:00:37]}  Kf6 {[%clk 0:00:17]} 35. Bd6 {[%clk 0:00:38]}  g5 {[%clk 0:00:11]} 36. Re1 {[%clk 0:00:36]}  Bb7 {[%clk 0:00:11]} 37. Be5+ {[%clk 0:00:33]}  Kg6 {[%clk 0:00:12]} 38. Bg3 {[%clk 0:00:34]}  h5 {[%clk 0:00:11]} 39. h3 {[%clk 0:00:31]}  hxg4 {[%clk 0:00:11]} 40. hxg4 {[%clk 0:00:31]}  Kf6 {[%clk 0:00:11]} 41. Rh1 {[%clk 0:00:28]}  Ke7 {[%clk 0:00:11]} 42. Rh7 {[%clk 0:00:27]}  b4 {[%clk 0:00:07]} 43. Be5 {[%clk 0:00:24]}  bxa3 {[%clk 0:00:07]} 44. bxa3 {[%clk 0:00:24]}  Nb6 {[%clk 0:00:06]} 45. Rh6 {[%clk 0:00:07]}  Nc4 {[%clk 0:00:06]} 46. Bf6+ {[%clk 0:00:07]}  Kd6 {[%clk 0:00:06]} 47. a4 {[%clk 0:00:08]}  Nd2 {[%clk 0:00:05]} 48. Bxg5 {[%clk 0:00:06]}  Nxf3 {[%clk 0:00:05]} 49. Bf4+ {[%clk 0:00:05]}  Ke7 {[%clk 0:00:06]} 50. Rh8 {[%clk 0:00:05]}  Nd4 {[%clk 0:00:05]} 51. Rb8 {[%clk 0:00:04]}  Bc6 {[%clk 0:00:05]} 52. Rb6 {[%clk 0:00:03]}  Kd7 {[%clk 0:00:05]} 53. Rxa6 {[%clk 0:00:03]}  Nb3 {[%clk 0:00:06]} 54. Ra7+ {[%clk 0:00:03]}  Ke8 {[%clk 0:00:05]} 55. Be3 {[%clk 0:00:04]}  Bd5 {[%clk 0:00:04]} 56. a5 {[%clk 0:00:04]}  Na1 {[%clk 0:00:04]} 57. Bb6 {[%clk 0:00:04]}  Nc2 {[%clk 0:00:04]} 58. Rc7 {[%clk 0:00:03]}  Nb4 {[%clk 0:00:04]} 59. Kg3 {[%clk 0:00:02]}  Na6 {[%clk 0:00:05]} 60. Ra7 {[%clk 0:00:02]}  Bc4 {[%clk 0:00:06]} 61. Kf4 {[%clk 0:00:02]}  f6 {[%clk 0:00:05]} 62. Kg3 {[%clk 0:00:01]}  Kf8 {[%clk 0:00:05]} 63. Rh7 {[%clk 0:00:02]}  Kg8 {[%clk 0:00:05]} 64. Ra7 {[%clk 0:00:02]}  Kf8 {[%clk 0:00:06]} 65. Kh4 {[%clk 0:00:03]}  Bd3 {[%clk 0:00:05]} 66. Kh5 {[%clk 0:00:03]}  Nb4 {[%clk 0:00:04]} 67. Kh6 {[%clk 0:00:03]}  Nc6 {[%clk 0:00:04]} 68. Rc7 {[%clk 0:00:04]}  Ne5 {[%clk 0:00:04]} 69. Bd4 {[%clk 0:00:03]}  Nxg4+ {[%clk 0:00:04]} 70. Kh5 {[%clk 0:00:03]}  Ne5 {[%clk 0:00:05]} 71. Bxe5 {[%clk 0:00:03]}  fxe5 {[%clk 0:00:06]} 72. Rc6 {[%clk 0:00:03]}  e4 {[%clk 0:00:06]} 73. a6 {[%clk 0:00:04]}  e3 {[%clk 0:00:06]} 74. a7 {[%clk 0:00:04]}  Be4 {[%clk 0:00:06]} 75. a8=Q+ {[%clk 0:00:04]}  Kf7 {[%clk 0:00:07]} 76. Qb7+ {[%clk 0:00:05]}  Kf6 {[%clk 0:00:07]} 77. Rc8 {[%clk 0:00:06]}  Bxb7 {[%clk 0:00:06]} 78. Rc3 {[%clk 0:00:06]}  e2 {[%clk 0:00:07]} 79. Re3 {[%clk 0:00:06]}  Bd5 {[%clk 0:00:07]} 80. Rxe2 {[%clk 0:00:07]}  Bf3+ {[%clk 0:00:07]} 81. Kh4 {[%clk 0:00:06]}  Bxe2 {[%clk 0:00:08]} 82. Kg3 {[%clk 0:00:07]}  Bd3 {[%clk 0:00:08]} 83. Kf2 {[%clk 0:00:08]}  Bf5 {[%clk 0:00:09]} 84. Ke3 {[%clk 0:00:08]}  e5 {[%clk 0:00:10]} 85. Kf2 {[%clk 0:00:09]}  Kg5 {[%clk 0:00:11]} 86. Ke3 {[%clk 0:00:10]}  Kg4 {[%clk 0:00:11]} 87. Kf2 {[%clk 0:00:11]}  Kf4 {[%clk 0:00:11]} 88. Ke1 {[%clk 0:00:12]}  e4 {[%clk 0:00:12]} 89. Kf2 {[%clk 0:00:12]}  e3+ {[%clk 0:00:12]} 90. Ke1 {[%clk 0:00:13]}  Bg4 {[%clk 0:00:12]} 91. Kf1 {[%clk 0:00:13]}  Ke4 {[%clk 0:00:13]} 92. Ke1 {[%clk 0:00:14]}  Kd3 {[%clk 0:00:13]} 93. Kf1 {[%clk 0:00:12]}  Kd2 {[%clk 0:00:14]} 0-1


[Site "https://www.chess.com"]

[Event "Titled Tuesday Blitz May 9 Early 2023"]
[White "Antal, Gergely"]
[Black "Makhmudov, Shukhrat"]
[WhiteFideId "717312"]
[BlackFideId "14200775"]
[WhiteElo "2471"]
[BlackElo "2135"]
[Result "1-0"]
[Round "02"]
[TimeControl "180+2"]
[Date "2023.05.09"]
[WhiteClock "0:01:05"]
[BlackClock "0:00:00"]

1. Nc3 {[%clk 0:02:50]}  e5 {[%clk 0:02:57]} 2. e4 {[%clk 0:02:49]}  Nf6 {[%clk 0:02:56]} 3. g3 {[%clk 0:02:49]}  Bb4 {[%clk 0:02:55]} 4. Bg2 {[%clk 0:02:49]}  Nc6 {[%clk 0:02:56]} 5. Nge2 {[%clk 0:02:50]}  d6 {[%clk 0:02:53]} 6. O-O {[%clk 0:02:50]}  Bg4 {[%clk 0:02:52]} 7. h3 {[%clk 0:02:49]}  Bxc3 {[%clk 0:02:48]} 8. bxc3 {[%clk 0:02:48]}  Be6 {[%clk 0:02:46]} 9. Rb1 {[%clk 0:02:48]}  Bxa2 {[%clk 0:02:36]} 10. Rxb7 {[%clk 0:02:47]}  Na5 {[%clk 0:02:31]} 11. Rb5 {[%clk 0:02:36]}  c6 {[%clk 0:02:28]} 12. Rb4 {[%clk 0:02:36]}  c5 {[%clk 0:02:25]} 13. Ra4 {[%clk 0:02:30]}  Be6 {[%clk 0:02:22]} 14. d4 {[%clk 0:02:31]}  Qc7 {[%clk 0:02:12]} 15. Bg5 {[%clk 0:02:26]}  Ng8 {[%clk 0:02:00]} 16. Qa1 {[%clk 0:02:25]}  h6 {[%clk 0:01:50]} 17. Bc1 {[%clk 0:02:21]}  Nb7 {[%clk 0:01:26]} 18. Rxa7 {[%clk 0:02:20]}  Rxa7 {[%clk 0:01:23]} 19. Qxa7 {[%clk 0:02:21]}  Ne7 {[%clk 0:01:22]} 20. f4 {[%clk 0:02:10]}  O-O {[%clk 0:01:18]} 21. d5 {[%clk 0:02:04]}  Bd7 {[%clk 0:01:16]} 22. fxe5 {[%clk 0:02:05]}  Nc8 {[%clk 0:01:10]} 23. exd6 {[%clk 0:02:00]}  Ncxd6 {[%clk 0:01:03]} 24. Bf4 {[%clk 0:01:58]}  Qc8 {[%clk 0:00:52]} 25. Rb1 {[%clk 0:01:42]}  Re8 {[%clk 0:00:30]} 26. e5 {[%clk 0:01:27]}  Bxh3 {[%clk 0:00:23]} 27. Bxh3 {[%clk 0:01:14]}  Qxh3 {[%clk 0:00:23]} 28. Rxb7 {[%clk 0:01:15]}  Nf5 {[%clk 0:00:18]} 29. Rxf7 {[%clk 0:01:07]}  Kh8 {[%clk 0:00:00]} 30. Qd7 {[%clk 0:01:05]} 1-0


[Site "https://www.chess.com"]